bitfinex/quotes_ETHUSD_20250404
["timestamp","ask_amount","ask_price","bid_price","bid_amount"]
[1743802523967,30.021,1814.7,1814.4,6.31132]
[1743802524181,24.8,1814.7,1814.5,5.51102]
[1743802524380,5.6536074,1814.8,1814.6,5.51085]
[1743802524670,5.6536074,1814.8,1814.7,6.31055]
[1743802524843,5.6536074,1814.8,1814.7,7.49269]
[1743802525239,0.1,1814.9,1814.8,5.51024]
[1743802525570,5.225,1815.1,1815.0,6.30964]
[1743802529967,30.016,1815.4,1815.0,0.8]
[1743802530167,30.016,1815.4,1815.1,5.50929]
[1743802530367,30.016,1815.4,1815.1,6.38455322]
[1743802530810,35.52446,1815.4,1815.1,6.38455322]
[1743802531180,30.016,1815.4,1815.0,0.8]
[1743802531475,5.50934,1815.1,1814.8,5.51021]
[1743802531675,5.53911519,1815.0,1814.8,5.51021]
[1743802532317,5.53911519,1815.0,1814.7,7.49743]
[1743802532491,5.53911519,1815.0,1814.8,5.51012]
[1743802532690,5.53911519,1815.0,1814.8,6.259816]
[1743802532886,5.53911519,1815.0,1814.8,11.769926]
[1743802533213,5.53911519,1815.0,1814.8,11.769896]
[1743802533412,5.53911519,1815.0,1814.8,11.769886]
[1743802533614,5.53911519,1815.0,1814.8,6.259786]
[1743802534779,5.53911519,1815.0,1814.8,0.749706]
[1743802535379,5.53911519,1815.0,1814.8,6.259786]
[1743802536519,5.53911519,1815.0,1814.8,0.749706]
[1743802536817,5.53911519,1815.0,1814.7,7.4973]
[1743802537195,5.53911519,1815.0,1814.7,13.00776]
[1743802537383,5.53911519,1815.0,1814.7,7.4973]
[1743802537830,5.53911519,1815.0,1814.8,5.51022]
[1743802538482,5.53911519,1815.0,1814.7,7.4973]
[1743802539182,5.53911519,1815.0,1814.7,1.98694]
[1743802539385,11.04888519,1815.0,1814.7,6.3152]
[1743802539707,11.04889519,1815.0,1814.7,6.3152]
[1743802539888,11.04889519,1815.0,1814.7,6.31532]
[1743802540084,11.04878519,1815.0,1814.7,6.31532]
[1743802540389,5.53911519,1815.0,1814.7,6.31521]
[1743802540600,11.04888519,1815.0,1814.7,6.31521]
[1743802541814,11.04879519,1815.0,1814.7,6.31521]
[1743802542286,16.55864519,1815.0,1814.7,6.31521]
[1743802542490,16.72594011,1815.0,1814.7,6.72507557]
[1743802542903,16.72594011,1815.0,1814.8,0.40986557]
[1743802543110,22.23585011,1815.0,1814.8,0.40986557]
[1743802543419,22.23585011,1815.0,1814.7,1.21466557]
[1743802543619,16.72594011,1815.0,1814.7,6.72510557]
[1743802543825,22.23576011,1815.0,1814.7,6.72510557]
[1743802543999,22.23577011,1815.0,1814.7,6.72510557]
[1743802544523,22.23577011,1815.0,1814.8,0.40986557]
[1743802545325,5.50996,1814.9,1814.7,0.8048]
[1743802545503,11.18710492,1814.9,1814.7,0.8048]
[1743802545703,0.31228772,1814.8,1814.7,0.8048]
[1743802546829,0.31228772,1814.8,1814.7,1.21613651]
[1743802547325,0.31228772,1814.8,1814.7,0.41133651]
[1743802547890,5.82252772,1814.8,1814.7,0.41133651]
[1743802550992,6.63152772,1814.8,1814.7,0.41133651]
[1743802551397,5.51116,1814.5,1814.4,0.41133651]
[1743802551601,10.71216,1814.5,1814.4,0.41133651]
[1743802551917,11.0212491,1814.5,1814.4,0.41133651]
[1743802552108,5.51169,1814.4,1814.1,0.41133651]
[1743802552323,11.02338,1814.4,1814.1,0.41133651]
[1743802552536,5.8209091,1814.3,1814.1,0.41133651]
[1743802552738,5.8209091,1814.3,1814.2,0.41133651]
[1743802553814,5.51209,1814.2,1814.0,0.41133651]
[1743802554011,5.202,1814.1,1814.0,0.41133651]
[1743802554217,5.50978385,1814.1,1814.0,0.41133651]
[1743802555208,5.50978385,1814.1,1814.0,5.92400651]
[1743802556337,5.50978385,1814.1,1814.0,0.41133651]
[1743802557899,5.50978385,1814.1,1813.9,5.92416651]
[1743802558096,5.50978385,1814.1,1813.9,5.92422651]
[1743802558540,5.50978385,1814.1,1813.9,0.41133651]
[1743802558834,11.82097385,1814.1,1813.9,0.41133651]
[1743802559196,5.51267,1814.0,1813.8,0.41133651]
[1743802559403,5.51298,1813.9,1813.8,0.41133651]
[1743802559630,11.33339636,1813.9,1813.7,0.41133651]
[1743802559826,5.82021636,1813.9,1813.7,0.41133651]
[1743802560127,5.82027636,1813.9,1813.6,0.41133651]
[1743802560329,5.51339,1813.8,1813.6,0.41133651]
[1743802560504,5.206,1813.7,1813.6,0.41133651]
[1743802560703,5.50813998,1813.7,1813.6,0.41133651]
[1743802561616,11.02172998,1813.7,1813.6,0.41133651]
[1743802562006,11.02172998,1813.7,1813.4,0.41133651]
[1743802562323,16.53548998,1813.7,1813.4,0.41133651]
[1743802562698,11.82032998,1813.7,1813.4,5.92579651]
[1743802562902,11.82032998,1813.7,1813.4,11.44020651]
[1743802563128,11.82046998,1813.7,1813.4,5.92574651]
[1743802563320,11.82046998,1813.7,1813.4,0.41133651]
[1743802563522,5.51394,1813.6,1813.3,6.72018651]
[1743802563719,0.30087556,1813.5,1813.3,6.72018651]
[1743802564339,0.30087556,1813.5,1813.3,12.23487651]
[1743802564517,11.51821,1813.7,1813.3,6.72012651]
[1743802564714,0.30087556,1813.6,1813.3,12.23482651]
[1743802564903,11.51821,1813.7,1813.3,12.23482651]
[1743802565104,0.30087556,1813.6,1813.3,11.82349]
[1743802565315,11.51821,1813.7,1813.3,11.82349]
[1743802565503,0.30087556,1813.6,1813.3,11.8235]
[1743802565703,11.51821,1813.7,1813.4,5.51446]
[1743802565906,0.30087556,1813.6,1813.4,5.51446]
[1743802566116,6.31164,1813.9,1813.3,0.7941]
[1743802566307,5.50187556,1813.8,1813.5,5.51401]
[1743802566508,5.50187556,1813.8,1813.4,5.5145]
[1743802566819,5.50187556,1813.8,1813.6,11.02742]
[1743802567129,5.50187556,1813.8,1813.6,5.51368]
[1743802568012,5.50187556,1813.8,1813.7,5.51359]
[1743802568213,5.50187556,1813.8,1813.6,5.51368]
[1743802568412,0.30087556,1813.8,1813.7,5.51359]
[1743802568648,5.50287556,1813.8,1813.7,5.51359]
[1743802568809,5.202,1813.8,1813.7,5.51359]
[1743802569162,5.50045826,1813.8,1813.7,5.51359]
[1743802570656,5.50045826,1813.8,1813.6,5.51368]
[1743802570854,5.50045826,1813.8,1813.7,5.51359]
[1743802572565,5.50045826,1813.8,1813.6,11.02743]
[1743802572759,5.50045826,1813.8,1813.7,5.51359]
[1743802572920,5.50045826,1813.8,1813.6,11.02745]
[1743802573760,5.50045826,1813.8,1813.6,5.51368]
[1743802574269,5.50045826,1813.8,1813.3,0.7941]
[1743802574560,11.01377826,1813.8,1813.5,11.0281]
[1743802575067,5.50045826,1813.8,1813.5,11.0281]
[1743802575566,5.50045826,1813.8,1813.6,5.51377]
[1743802575927,5.50045826,1813.8,1813.6,11.02752]
[1743802576125,5.50045826,1813.8,1813.6,5.51375]
[1743802576464,5.50045826,1813.8,1813.7,5.51359]
[1743802576617,5.50045826,1813.8,1813.6,5.51375]
[1743802576823,5.50045826,1813.8,1813.7,5.51359]
[1743802577163,5.50045826,1813.8,1813.6,11.02752]
[1743802577463,5.50045826,1813.8,1813.7,5.51359]
[1743802578583,5.50045826,1813.8,1813.7,6.29349]
[1743802578783,5.48545826,1813.8,1813.7,7.88534794]
[1743802580162,5.48545826,1813.8,1813.7,6.70462394]
[1743802580858,5.48545826,1813.8,1813.7,5.92472394]
[1743802592078,5.48545826,1813.8,1813.7,0.41113394]
[1743802593168,5.48545826,1813.8,1813.7,5.92472394]
[1743802619977,0.29845826,1813.8,1813.7,5.92472394]
[1743802620171,5.138,1813.8,1813.7,5.92472394]
[1743802620462,0.27432043,1813.8,1813.7,7.88047133]
[1743802620833,5.139,1813.9,1813.8,5.51328]
[1743802621563,5.139,1813.9,1813.8,5.92441394]
[1743802622367,0.7986,1814.1,1813.9,5.51295]
[1743802622566,5.137,1814.0,1813.9,5.51295]
[1743802622958,5.137,1814.0,1813.9,5.92408394]
[1743802625372,5.137,1814.0,1813.9,5.51295]
[1743802625982,5.137,1814.0,1813.9,5.92606264]
[1743802627571,5.41199702,1814.0,1813.9,5.92606264]
[1743802628439,0.27499702,1814.0,1813.9,5.92606264]
[1743802628761,5.133,1814.0,1813.9,5.92606264]
[1743802628959,5.40825077,1814.0,1813.9,5.92606264]
[1743802633875,5.40825077,1814.0,1813.9,6.74416264]
[1743802639653,0.27525077,1814.0,1813.9,10.36600134]
[1743802639986,6.26543,1814.4,1814.0,5.51267]
[1743802640189,0.25283457,1814.3,1814.1,5.5122]
[1743802640363,0.7539,1814.4,1814.2,11.02414]
[1743802640550,5.38634474,1814.3,1814.2,11.02414]
[1743802640756,0.25334474,1814.3,1814.2,11.02414]
[1743802641061,5.133,1814.3,1814.2,11.02414]
[1743802641398,5.36525966,1814.3,1814.2,11.43646742]
[1743802645350,0.23225966,1814.3,1814.2,12.89501361]
[1743802645555,29.935,1814.5,1814.4,5.51146]
[1743802645756,25.03525966,1814.5,1814.4,9.07278186]
[1743802646088,0.23225966,1814.5,1814.4,9.07278186]
[1743802646463,5.132,1814.8,1814.7,5.51055]
[1743802646663,30.30808,1815.2,1814.8,11.02016]
[1743802646664,5.135,1814.9,1814.8,11.02016]
[1743802647251,5.135,1814.9,1814.8,11.43248742]
[1743802647459,25.557,1815.2,1814.8,0.41232742]
[1743802647793,25.557,1815.2,1815.0,5.50964]
[1743802648087,5.134,1815.1,1815.0,5.92196742]
[1743802648992,5.134,1815.1,1815.0,7.06514616]
[1743802649154,5.134,1815.1,1815.0,7.81804616]
[1743802649767,24.799,1815.2,1815.1,5.50933]
[1743802649969,5.134,1815.3,1815.2,5.50903]
[1743802650276,5.134,1815.3,1815.2,5.92135742]
[1743802650476,5.134,1815.3,1815.2,7.30403561]
[1743802650915,0.7787,1815.7,1815.5,5.50812]
[1743802651102,5.134,1815.6,1815.5,5.50812]
[1743802651403,0.55,1815.8,1815.7,5.50751]
[1743802651597,0.55,1815.8,1815.7,7.90360444]
[1743802651799,0.55,1815.8,1815.7,6.84865244]
[1743802652401,0.55,1815.8,1815.7,10.69143914]
[1743802652769,0.55,1815.8,1815.7,11.10055791]
[1743802653703,0.55,1815.8,1815.7,11.15562556]
[1743802653910,0.55,1815.8,1815.7,14.92662556]
[1743802654084,0.55,1815.8,1815.7,14.87155791]
[1743802654287,0.55,1815.8,1815.7,15.28234025]
[1743802654592,0.55,1815.8,1815.7,15.83234025]
[1743802658142,1e-05,1815.8,1815.7,15.83234025]
[1743802659322,1e-05,1815.8,1815.7,21.89234025]
[1743802659701,25.5851,1816.7,1815.8,3.0]
[1743802660034,0.22263563,1816.6,1816.5,11.01016]
[1743802660331,0.22263563,1816.6,1816.5,5.50508]
[1743802660533,0.22849154,1816.6,1816.5,5.50508]
[1743802660904,30.7451,1816.7,1816.6,5.50478]
[1743802661126,29.949,1816.7,1816.6,5.50478]
[1743802661296,29.949,1816.7,1816.5,5.50496]
[1743802661628,29.949,1816.7,1816.6,5.50478]
[1743802662332,1.4461,1816.9,1816.7,5.50448]
[1743802662531,6.6091,1816.9,1816.7,5.50448]
[1743802663021,6.6091,1816.9,1816.7,11.00885]
[1743802663233,0.65,1816.9,1816.8,5.50418]
[1743802663402,0.65,1816.9,1816.8,6.66006918]
[1743802663605,0.65,1816.9,1816.8,6.605035]
[1743802666007,0.65,1816.9,1816.8,7.368635]
[1743802667104,0.65,1816.9,1816.8,10.42366006]
[1743802667312,0.65,1816.9,1816.8,10.82849399]
[1743802667710,0.65,1816.9,1816.8,10.77346893]
[1743802668632,1e-05,1816.9,1816.8,10.77346893]
[1743802669241,1e-05,1816.9,1816.8,10.82848964]
[1743802670048,1e-05,1816.9,1816.8,16.88848964]
[1743802670345,1e-05,1816.9,1816.8,16.83346893]
[1743802670748,1e-05,1816.9,1816.8,17.38346893]
[1743802673961,1e-05,1816.9,1816.8,16.83346893]
[1743802674266,1e-05,1816.9,1816.8,17.38346893]
[1743802677664,0.7961,1817.6,1817.5,5.50206]
[1743802677960,0.7961,1817.6,1817.5,6.42401567]
[1743802678167,1.02782113,1817.6,1817.5,6.42401567]
[1743802678360,0.23172113,1817.6,1817.5,6.36900105]
[1743802678562,0.7646,1817.8,1817.7,5.50145]
[1743802678765,0.99632113,1817.8,1817.7,5.50145]
[1743802679367,0.99632113,1817.8,1817.7,5.90628393]
[1743802679667,0.23172113,1817.8,1817.7,10.94488076]
[1743802680031,0.1,1817.9,1817.8,5.50115]
[1743802680261,0.34380498,1817.9,1817.8,5.50115]
[1743802680631,0.34380498,1817.9,1817.8,5.90598393]
[1743802681768,0.34380498,1817.9,1817.8,15.02098444]
[1743802681970,0.34380498,1817.9,1817.8,17.59785618]
[1743802682267,0.1,1817.9,1817.8,17.59785618]
[1743802682569,5.9586,1818.5,1818.4,5.49934]
[1743802682957,6.20879652,1818.5,1818.4,5.49934]
[1743802683169,6.20879652,1818.5,1818.4,5.90417393]
[1743802683495,1.01479652,1818.5,1818.4,0.40483393]
[1743802683696,1.01479652,1818.5,1818.4,5.90417393]
[1743802685370,1.01479652,1818.5,1818.4,5.9065534]
[1743802686490,0.25019652,1818.5,1818.4,7.04716574]
[1743802686775,0.25019652,1818.5,1818.4,7.1021506]
[1743802686979,0.8646,1818.9,1818.8,5.49813]
[1743802687364,1.0956435,1818.9,1818.8,5.49813]
[1743802687688,1.0956435,1818.9,1818.8,5.9053434]
[1743802688202,1.0956435,1818.9,1818.8,0.4072134]
[1743802688497,1.0956435,1818.9,1818.8,5.49813]
[1743802688678,1.0956435,1818.9,1818.6,5.49856]
[1743802688991,1.0956435,1818.9,1818.7,5.9055234]
[1743802689288,0.3310435,1818.9,1818.8,5.49813]
[1743802689666,0.3310435,1818.9,1818.8,5.9053434]
[1743802693393,0.3310435,1818.9,1818.8,5.96031389]
[1743802694800,5.59483,1819.9,1819.5,5.49595]
[1743802695003,0.7606,1819.8,1819.6,5.49567]
[1743802695498,0.7606,1819.8,1819.6,5.9028134]
[1743802695900,0.7606,1819.8,1819.6,10.99116]
[1743802696069,0.7606,1819.8,1819.6,5.49556]
[1743802696269,0.7606,1819.8,1819.7,5.49541]
[1743802696673,0.7606,1819.8,1819.7,5.90123406]
[1743802696888,0.1,1819.9,1819.8,5.4951]
[1743802697671,0.1,1819.9,1819.8,5.90092406]
[1743802698182,0.1,1819.9,1819.8,0.40582406]
[1743802698903,0.1,1819.9,1819.6,5.49558]
[1743802699694,0.1,1819.9,1819.7,5.4954]
[1743802700103,0.8238,1820.4,1819.7,5.7429847]
[1743802700291,0.8238,1820.4,1820.1,10.98816]
[1743802700485,0.8238,1820.4,1820.1,5.49407]
[1743802700877,5.49332,1820.4,1820.0,5.49448]
[1743802701071,0.8238,1820.2,1819.9,5.49465]
[1743802701270,6.0368,1820.2,1819.9,5.49465]
[1743802701572,6.0368,1820.2,1820.0,5.49438]
[1743802702378,0.14312023,1820.1,1820.0,5.49438]
[1743802702584,0.1,1820.9,1820.6,5.49251]
[1743802702783,0.1,1820.9,1820.6,10.98506]
[1743802702983,0.13010922,1820.8,1820.6,10.98506]
[1743802703300,0.1,1820.9,1820.6,1.098506]
[1743802703483,0.1,1820.9,1820.6,5.49251]
[1743802703686,0.1,1820.9,1820.8,5.49209]
[1743802703880,0.1,1820.9,1820.7,5.4921]
[1743802704089,0.1,1820.9,1820.7,10.98434]
[1743802704477,5.4898,1821.6,1821.2,5.49077]
[1743802704711,0.8238,1821.6,1821.4,5.49021]
[1743802705299,0.8238,1821.6,1821.3,5.49055]
[1743802705608,10.74365,1821.7,1820.9,10.98324]
[1743802705808,6.31487,1821.2,1820.8,5.49206]
[1743802705982,11.57087,1821.2,1820.8,5.49206]
[1743802706184,11.57087,1821.2,1820.7,15.9257807]
[1743802706411,5.49124,1821.1,1820.7,12.082994]
[1743802706578,5.48949,1821.7,1821.3,5.49058]
[1743802706776,0.8238,1821.6,1821.3,5.49058]
[1743802706983,6.21353,1821.6,1821.2,5.49087]
[1743802707606,5.48999,1821.5,1821.2,5.49087]
[1743802707810,5.48999,1821.5,1821.1,10.98218]
[1743802708111,5.48999,1821.5,1821.1,5.491]
[1743802708279,5.48999,1821.5,1821.1,10.982]
[1743802709017,0.1,1821.9,1821.5,5.48998]
[1743802709201,0.1,1821.9,1821.6,5.48945]
[1743802710011,0.1,1821.9,1821.6,5.54445993]
[1743802710203,0.10993408,1821.8,1821.6,10.97913]
[1743802710386,0.10993408,1821.8,1821.6,5.48956]
[1743802710708,0.10993408,1821.8,1821.7,5.48937]
[1743802711028,4.08e-06,1821.8,1821.7,19.7640567]
[1743802711209,0.0992,1821.9,1821.8,9.03907]
[1743802711409,0.0992,1821.9,1821.8,13.18527505]
[1743802711712,0.0992,1821.9,1821.8,17.31721021]
[1743802712008,0.0992,1821.9,1821.8,16.76721021]
[1743802712787,0.0992,1821.9,1821.8,13.76721021]
[1743802712991,0.0992,1821.9,1821.8,13.36516375]
[1743802713616,0.0992,1821.9,1821.8,12.54326375]
[1743802714120,0.0992,1821.9,1821.8,8.41132859]
[1743802714298,0.0992,1821.9,1821.8,8.46620939]
[1743802714613,0.0992,1821.9,1821.7,5.48937]
[1743802714825,0.0992,1821.9,1821.6,6.587533]
[1743802715322,0.825,1821.8,1821.5,10.97976]
[1743802715525,11.63118,1821.8,1821.4,5.49013]
[1743802715706,10.97913,1821.7,1821.3,5.54533752]
[1743802716059,5.4897,1821.6,1821.3,5.54533752]
[1743802716326,10.97956,1821.6,1821.2,5.49085]
[1743802716635,10.97956,1821.6,1821.3,0.05489915]
[1743802716831,5.48999,1821.5,1821.3,0.05489915]
[1743802717125,0.775,1821.4,1821.1,5.49115]
[1743802717360,0.775,1821.4,1821.0,5.49145]
[1743802717361,17.07279,1821.4,1821.0,5.49145]
[1743802717536,5.49071,1821.3,1820.9,5.49167]
[1743802717688,5.49118,1821.2,1820.9,1.098362]
[1743802717888,5.4914,1821.1,1820.9,1.098362]
[1743802718139,10.98277,1821.1,1820.8,0.05491444]
[1743802718430,5.49137,1821.1,1820.8,0.05491444]
[1743802718911,5.49137,1821.1,1820.8,5.54698444]
[1743802719428,5.49137,1821.1,1820.8,0.05491444]
[1743802719923,5.49137,1821.1,1820.8,0.05491436]
[1743802720235,5.49137,1821.1,1820.8,5.54696436]
[1743802720534,5.49137,1821.1,1820.8,6.6508828]
[1743802720834,5.49092,1821.2,1820.9,5.49177]
[1743802720985,5.49061,1821.3,1820.9,5.49177]
[1743802721187,5.49061,1821.3,1820.9,5.49166]
[1743802721382,5.49061,1821.3,1821.0,5.49139]
[1743802721612,6.092,1821.4,1821.0,1.10379643]
[1743802721786,6.092,1821.4,1821.2,5.49065]
[1743802721995,5.317,1821.4,1821.3,5.49058]
[1743802723728,11.57748,1821.7,1821.4,5.49025]
[1743802724332,6.088,1821.7,1821.4,5.49025]
[1743802724735,6.088,1821.7,1821.5,5.48983]
[1743802724937,6.088,1821.7,1821.1,11.55102]
[1743802725145,6.088,1821.7,1821.4,5.49016]
[1743802725638,6.088,1821.7,1821.5,5.48995]
[1743802726440,6.088,1821.7,1821.4,10.98032]
[1743802726713,6.088,1821.7,1821.5,5.48986]
[1743802727426,6.088,1821.7,1821.5,10.9797]
[1743802727622,6.088,1821.7,1821.5,5.48984]
[1743802727822,6.088,1821.7,1821.4,5.49006]
[1743802728142,6.088,1821.7,1821.4,5.49005]
[1743802728346,6.088,1821.7,1821.4,10.98014]
[1743802728738,6.088,1821.7,1821.5,0.40622185]
[1743802729748,11.5774,1821.7,1821.5,0.40622185]
[1743802730550,11.5774,1821.7,1821.4,5.49005]
[1743802730844,5.48973,1821.6,1821.3,5.49037]
[1743802731046,5.49058,1821.3,1821.1,6.06]
[1743802731245,5.49058,1821.3,1821.0,5.49142]
[1743802731246,10.78658,1821.3,1821.0,5.49142]
[1743802731548,11.58178,1821.3,1821.1,0.40752805]
[1743802731902,11.58178,1821.3,1821.2,0.40752805]
[1743802732252,0.7952,1820.7,1820.5,5.49283]
[1743802733351,0.7952,1820.7,1820.4,10.98646]
[1743802733662,0.7952,1820.7,1820.5,5.49298]
[1743802734301,5.49273,1820.6,1820.2,5.49387]
[1743802734506,10.98565,1820.6,1820.2,5.49387]
[1743802734717,0.7952,1820.7,1820.5,5.49289]
[1743802734964,5.304,1820.8,1820.6,5.49241]
[1743802735153,5.304,1820.8,1820.7,5.49239]
[1743802735455,5.307,1821.1,1820.8,5.49191]
[1743802735621,5.307,1821.1,1820.8,10.98383]
[1743802735810,10.79831,1821.1,1820.7,6.66792]
[1743802736613,10.79831,1821.1,1820.7,12.16016]
[1743802736947,10.79831,1821.1,1820.8,5.49204]
[1743802737250,10.79823,1821.1,1820.8,5.49195]
[1743802737607,10.79823,1821.1,1820.7,12.16031]
[1743802737809,10.79823,1821.1,1820.8,5.49206]
[1743802738349,5.307,1821.1,1820.8,10.98405]
[1743802738653,10.79823,1821.1,1820.8,5.49199]
[1743802740262,10.85316132,1821.1,1820.8,5.49199]
[1743802740425,10.79823,1821.1,1820.7,6.66804]
[1743802740808,10.79823,1821.1,1820.8,5.49208]
[1743802741510,5.307,1821.1,1820.8,5.49209]
[1743802741709,10.79836,1821.1,1820.8,5.49209]
[1743802741944,5.307,1821.1,1820.8,5.49198]
[1743802742144,10.79828,1821.1,1820.8,5.49201]
[1743802743320,5.307,1821.1,1820.8,5.49197]
[1743802743531,5.307,1821.1,1820.8,10.98389]
[1743802744353,10.79819,1821.1,1820.8,5.4919]
[1743802744557,10.79819,1821.1,1820.9,0.40882507]
[1743802744915,16.28953,1821.1,1820.7,12.16028]
[1743802745229,5.492,1820.9,1820.4,0.7954]
[1743802745413,5.492,1820.9,1820.5,10.98579]
[1743802745607,5.4921,1820.8,1820.5,5.90196436]
[1743802746161,5.49245,1820.7,1820.4,5.54814197]
[1743802746317,10.77745,1820.7,1820.4,5.54814197]
[1743802746820,10.77745,1820.7,1820.5,0.40921566]
[1743802747364,10.77745,1820.7,1820.6,0.40921566]
[1743802747512,10.77745,1820.7,1820.5,0.40921566]
[1743802747759,5.49269,1820.6,1820.5,0.40921566]
[1743802747961,5.49299,1820.5,1820.4,0.40921566]
[1743802748269,5.54792132,1820.5,1820.4,0.40921566]
[1743802748602,5.49336,1820.4,1820.2,0.40921566]
[1743802748772,5.29,1820.3,1820.2,0.40921566]
[1743802749263,10.78378,1820.3,1820.1,0.40921566]
[1743802749467,5.29,1820.3,1820.1,0.40921566]
[1743802749660,10.78361,1820.3,1820.1,0.40921566]
[1743802750178,16.27738,1820.3,1820.1,0.40921566]
[1743802750373,5.4939,1820.2,1820.1,0.40921566]
[1743802750578,10.98805,1820.2,1820.0,0.41921566]
[1743802750779,5.4942,1820.1,1820.0,0.41921566]
[1743802751178,5.4942,1820.1,1820.0,0.01]
[1743802752589,9.3197,1820.1,1820.0,0.01]
[1743802752979,9.37463132,1820.1,1820.0,0.01]
[1743802755869,9.92463132,1820.1,1820.0,1e-05]
[1743802756812,9.37463132,1820.1,1820.0,1e-05]
[1743802757372,11.67563132,1820.1,1820.0,1e-05]
[1743802757603,11.6207,1820.1,1820.0,1e-05]
[1743802757965,11.6187,1820.1,1820.0,1e-05]
[1743802758416,11.6177,1820.1,1820.0,1e-05]
[1743802760016,11.6137,1820.1,1820.0,1e-05]
[1743802763616,12.94400155,1820.1,1820.0,1e-05]
[1743802763789,11.6137,1820.1,1820.0,1e-05]
[1743802770411,5.4942,1820.1,1820.0,1e-05]
[1743802770604,10.7662,1820.1,1820.0,1e-05]
[1743802773712,10.7622,1820.1,1820.0,1e-05]
[1743802774708,5.4942,1820.1,1820.0,1e-05]
[1743802775012,10.7592,1820.1,1820.0,1e-05]
[1743802777523,10.7592,1820.1,1820.0,0.410824]
[1743802779524,10.7492,1820.1,1820.0,0.410824]
[1743802780086,10.80413132,1820.1,1820.0,0.410824]
[1743802780492,10.7492,1820.1,1820.0,0.410824]
[1743802781314,10.80413132,1820.1,1820.0,0.410824]
[1743802795535,5.54913132,1820.1,1820.0,0.410824]
[1743802795831,10.77313132,1820.1,1820.0,0.410824]
[1743802800444,11.52973132,1820.1,1820.0,0.410824]
[1743802800746,15.0248,1820.1,1820.0,0.410824]
[1743802800931,5.49557,1819.7,1819.3,6.30163]
[1743802801133,16.21674,1819.6,1819.3,0.8052]
[1743802801318,5.225,1819.5,1819.3,6.30178]
[1743802801516,5.225,1819.5,1819.4,5.49631]
[1743802801941,5.225,1819.5,1819.3,11.79824]
[1743802802112,5.225,1819.5,1819.3,7.481484]
[1743802802317,5.225,1819.5,1819.4,6.30151]
[1743802802512,0.05493132,1820.0,1819.8,5.49508]
[1743802802718,10.98834,1820.2,1819.9,0.8052]
[1743802802912,5.227,1820.1,1819.9,0.8052]
[1743802803147,10.72123,1820.1,1819.9,0.8052]
[1743802803347,10.77616132,1820.1,1819.9,0.8052]
[1743802804017,10.77615132,1820.1,1819.9,0.8052]
[1743802804215,5.227,1820.1,1819.9,0.8052]
[1743802804917,10.72124,1820.1,1819.9,0.8052]
[1743802805243,16.27061132,1820.1,1819.9,0.8052]
[1743802805447,10.72124,1820.1,1819.9,0.8052]
[1743802805646,10.77617132,1820.1,1819.9,0.8052]
[1743802806248,16.27053132,1820.1,1819.9,0.8052]
[1743802806455,16.2156,1820.1,1819.9,0.8052]
[1743802806746,10.72124,1820.1,1819.9,0.8052]
[1743802806935,10.77617132,1820.1,1819.9,0.8052]
[1743802807320,5.4945,1820.0,1819.9,0.8052]
[1743802808553,5.4945,1820.0,1819.7,5.49527]
[1743802808753,5.4945,1820.0,1819.7,6.672123]
[1743802809349,5.49491,1819.9,1819.6,6.27326]
[1743802809551,5.54950132,1820.0,1819.6,11.76882]
[1743802809741,11.04416132,1820.0,1819.6,11.76882]
[1743802810050,5.49457,1820.0,1819.7,5.49534]
[1743802810253,5.49457,1820.0,1819.7,5.4953]
[1743802810454,5.49457,1820.0,1819.7,5.49526]
[1743802810625,5.49454,1820.0,1819.7,5.49526]
[1743802810826,5.54947132,1820.0,1819.7,5.49526]
[1743802812954,5.54947132,1820.0,1819.8,0.41152089]
[1743802813339,5.54947132,1820.0,1819.9,0.41152089]
[1743802815762,0.05493132,1820.0,1819.9,0.41152089]
[1743802816167,5.54943132,1820.0,1819.9,0.41152089]
[1743802819162,0.05493132,1820.0,1819.9,0.41152089]
[1743802819362,5.216,1820.0,1819.9,0.41152089]
[1743802819569,5.215,1820.0,1819.9,1.19282089]
[1743802819933,10.98802,1820.2,1819.9,1.19282089]
[1743802820140,5.215,1820.1,1819.9,6.68754089]
[1743802820338,5.215,1820.1,1820.0,0.41152089]
[1743802822248,10.7092,1820.1,1820.0,0.41152089]
[1743802823070,9.29674,1820.4,1820.0,5.90602089]
[1743802823276,5.21,1820.3,1820.1,5.49418]
[1743802823638,5.21,1820.3,1820.2,0.41152089]
[1743802826074,5.21,1820.3,1820.2,0.58317697]
[1743802826276,5.21,1820.3,1820.2,1.19089867]
[1743802826492,5.213,1820.4,1820.3,6.32269]
[1743802826777,24.72,1820.5,1820.4,5.49329]
[1743802826943,29.934,1820.5,1820.4,5.49329]
[1743802827139,24.72,1820.5,1820.4,5.66494608]
[1743802827476,5.215,1820.5,1820.4,8.14548267]
[1743802827669,5.215,1820.7,1820.5,5.49286]
[1743802828079,5.215,1820.7,1820.6,0.58317697]
[1743802831867,5.43075142,1820.7,1820.6,0.58317697]
[1743802833077,5.43075142,1820.7,1820.6,6.07586697]
[1743802834044,5.43075142,1820.7,1820.6,0.58317697]
[1743802834779,5.43075142,1820.7,1820.6,0.17165608]
[1743802835351,5.43075142,1820.7,1820.6,0.58317697]
[1743802835759,5.43075142,1820.7,1820.6,0.17165608]
[1743802836181,5.43075142,1820.7,1820.6,0.58317697]
[1743802837179,5.43075142,1820.7,1820.6,0.17165608]
[1743802837480,5.43075142,1820.7,1820.5,5.90434089]
[1743802838581,5.43075142,1820.7,1820.5,5.49282]
[1743802838990,5.43075142,1820.7,1820.5,5.90434089]
[1743802839484,5.43075142,1820.7,1820.5,11.39725089]
[1743802839789,5.43075142,1820.7,1820.5,10.98573]
[1743802840482,5.43075142,1820.7,1820.5,5.49282]
[1743802840951,5.43075142,1820.7,1820.5,5.90225845]
[1743802845164,5.43075142,1820.7,1820.5,5.90241845]
[1743802846511,5.43075142,1820.7,1820.5,0.40943845]
[1743802846655,5.43075142,1820.7,1820.5,5.90238845]